bitfinex/quotes_SOLUSD_20240814
["timestamp","ask_amount","ask_price","bid_price","bid_amount"]
[1723643726376,55.33,147.82,147.66,55.33]
[1723643726578,21.32340461,147.81,147.66,55.33]
[1723643726885,20.0,147.78,147.62,20.0]
[1723643727289,55.33,147.79,147.63,55.33]
[1723643727495,55.33,147.79,147.64,20.0]
[1723643727865,55.33,147.73,147.56,6.1933]
[1723643728189,75.33,147.7,147.54,55.33]
[1723643728519,75.33,147.67,147.53,7.01864957]
[1723643728799,75.33,147.67,147.51,70.4977]
[1723643729084,20.0,147.65,147.51,7.02110672]
[1723643729285,55.33,147.64,147.5,6.1933]
[1723643729467,55.33,147.67,147.51,55.33]
[1723643729662,75.33,147.64,147.51,7.02233728]
[1723643729888,76.65340461,147.64,147.48,55.33]
[1723643730289,55.33,147.64,147.48,55.33]
[1723643730592,75.33,147.64,147.48,62.3525224]
[1723643730795,21.32340461,147.63,147.48,62.3525224]
[1723643731283,21.32340461,147.63,147.48,7.0225224]
[1723643731480,20.0,147.6,147.44,16.2659]
[1723643731684,55.33,147.61,147.44,16.2659]
[1723643731888,7.67500461,147.62,147.44,23.28890606]
[1723643732186,26.3516,147.62,147.48,55.33]
[1723643732393,26.3516,147.62,147.45,55.33]
[1723643732394,1.32340461,147.61,147.45,55.33]
[1723643732691,27.67500461,147.62,147.48,55.33]
[1723643732896,6.3516,147.62,147.48,55.33]
[1723643733388,6.2013,147.68,147.49,20.0]
[1723643733689,6.2013,147.68,147.44,23.28890606]
[1723643733690,20.0,147.64,147.5,55.33]
[1723643733895,1.32340461,147.63,147.53,55.33]
[1723643734105,20.0,147.64,147.53,55.33]
[1723643734393,20.0,147.64,147.45,20.0]
[1723643734394,75.33,147.64,147.5,55.33]
[1723643734888,55.33,147.64,147.5,55.33]
[1723643735260,20.0,147.63,147.5,55.33]
[1723643735462,20.0,147.61,147.47,55.33]
[1723643736096,1.32340461,147.6,147.47,55.33]
[1723643736281,55.33,147.61,147.47,55.33]
[1723643736790,35.7623,147.63,147.47,55.33]
[1723643736995,35.7623,147.63,147.44,23.28890606]
[1723643736996,15.7623,147.63,147.5,55.33]
[1723643737369,15.7623,147.63,147.51,45.0]
[1723643737370,21.32340461,147.62,147.51,45.0]
[1723643737589,20.0,147.62,147.51,45.0]
[1723643737784,15.7623,147.63,147.47,55.33]
[1723643737785,20.0,147.6,147.47,55.33]
[1723643737995,20.0,147.57,147.44,62.35300606]
[1723643738173,1.32340461,147.56,147.44,55.33]
[1723643738371,1.32340461,147.55,147.44,55.33]
[1723643738674,1.32340461,147.54,147.37,23.6592761]
[1723643738885,1.32340461,147.54,147.38,55.33]
[1723643739092,20.0,147.51,147.38,7.02305546]
[1723643739286,20.0,147.51,147.37,0.8477761]
[1723643739471,26.0377,147.55,147.4,55.33]
[1723643739670,41.32340461,147.54,147.4,55.33]
[1723643739966,21.32340461,147.53,147.37,7.87113113]
[1723643740274,20.0,147.54,147.42,55.33]
[1723643740589,20.0,147.54,147.39,55.33]
[1723643741089,20.0,147.53,147.39,55.33]
[1723643741389,20.0,147.54,147.39,55.33]
[1723643741590,20.0,147.54,147.37,63.20113113]
[1723643741771,20.0,147.54,147.38,20.0]
[1723643742377,20.0,147.54,147.4,55.33]
[1723643742786,21.32340461,147.53,147.41,45.0]
[1723643742993,41.68340461,147.53,147.41,45.0]
[1723643743165,20.0,147.53,147.41,45.0]
[1723643743579,1.32340461,147.52,147.41,45.0]
[1723643743779,1.32340461,147.51,147.41,45.0]
[1723643743975,20.0,147.54,147.41,45.0]
[1723643744192,6.0377,147.55,147.41,100.33]
[1723643744804,6.0377,147.55,147.38,7.0220073]
[1723643744805,20.0,147.52,147.38,7.0220073]
[1723643744969,20.0,147.52,147.37,0.8477761]
[1723643745168,20.0,147.5,147.37,20.8477761]
[1723643745387,75.33,147.5,147.37,0.8477761]
[1723643745589,75.33,147.53,147.37,0.8477761]
[1723643745799,20.0,147.52,147.37,20.8477761]
[1723643746305,55.33,147.53,147.38,62.1151]
[1723643746486,6.0377,147.55,147.41,55.33]
[1723643746695,6.0377,147.55,147.44,55.33]
[1723643747283,6.0377,147.55,147.45,45.0]
[1723643747496,6.5666,147.61,147.5,55.33]
[1723643747724,6.5666,147.61,147.51,45.0]
[1723643748276,76.65340461,147.6,147.44,6.2954]
[1723643748484,55.33,147.57,147.45,20.0]
[1723643748693,55.33,147.57,147.46,45.0]
[1723643748694,20.0,147.56,147.46,45.0]
[1723643748892,20.0,147.56,147.43,20.0]
[1723643749099,20.0,147.56,147.42,55.33]
[1723643749297,1.32340461,147.55,147.42,55.33]
[1723643749487,75.33,147.54,147.37,7.0172761]
[1723643749692,56.65340461,147.54,147.39,55.33]
[1723643749897,21.32340461,147.56,147.39,55.33]
[1723643750403,20.0,147.54,147.39,60.36]
[1723643750708,80.36,147.52,147.37,0.8477761]
[1723643750912,20.0,147.5,147.37,0.8477761]
[1723643751218,1.32340461,147.49,147.37,0.8477761]
[1723643751623,20.0,147.5,147.37,0.8477761]
[1723643751910,20.0,147.55,147.4,60.36]
[1723643752114,20.0,147.51,147.37,0.8477761]
[1723643752291,1.32340461,147.5,147.37,0.8477761]
[1723643752490,20.0,147.51,147.37,0.8477761]
[1723643753094,1.32340461,147.5,147.37,0.8477761]
[1723643753300,1.32340461,147.49,147.37,0.8477761]
[1723643753492,1.32340461,147.48,147.37,0.8477761]
[1723643753919,20.0,147.51,147.37,0.8477761]
[1723643754131,20.0,147.49,147.37,0.8477761]
[1723643754606,80.36,147.51,147.37,0.8477761]
[1723643754807,83.05813638,147.51,147.37,0.8477761]
[1723643755108,20.0,147.49,147.37,0.8477761]
[1723643755706,1.32340461,147.48,147.37,0.8477761]
[1723643756020,20.0,147.47,147.37,0.8477761]
[1723643756195,60.36,147.48,147.37,0.8477761]
[1723643757009,20.0,147.45,147.37,0.8477761]
[1723643757348,81.68340461,147.45,147.37,0.8477761]
[1723643757532,60.36,147.45,147.37,0.8477761]
[1723643757824,20.0,147.48,147.37,0.8477761]
[1723643757999,6.4093,147.49,147.37,0.8477761]
[1723643758207,21.32340461,147.48,147.37,0.8477761]
[1723643758600,26.7829,147.43,147.37,0.8477761]
[1723643758828,20.0,147.43,147.37,0.8477761]
[1723643759001,20.0,147.45,147.37,0.8477761]
[1723643759201,67.1419,147.46,147.37,0.8477761]
[1723643759202,20.0,147.43,147.37,0.8477761]
[1723643759518,87.143,147.43,147.37,0.8477761]
[1723643759907,60.36,147.43,147.37,0.8477761]
[1723643760103,60.36,147.46,147.37,0.8477761]
[1723643760419,66.7693,147.49,147.37,0.8477761]
[1723643760723,16.3426,147.51,147.38,6.7851]
[1723643760910,6.381,147.55,147.4,60.36]
[1723643761111,6.381,147.55,147.38,6.554]
[1723643761112,16.4605,147.58,147.43,67.1428]
[1723643761326,16.4605,147.58,147.44,45.0]
[1723643761327,19.21722809,147.58,147.44,45.0]
[1723643761538,20.0,147.56,147.44,45.0]
[1723643761730,20.0,147.56,147.38,6.554]
[1723643761731,20.0,147.51,147.38,6.554]
[1723643761938,20.0,147.51,147.39,45.0]
[1723643761939,1.32340461,147.5,147.39,45.0]
[1723643762299,20.0,147.53,147.39,45.0]
[1723643762508,20.0,147.56,147.4,60.36]
[1723643762711,20.0,147.55,147.41,45.0]
[1723643762903,6.777,147.56,147.37,0.8477761]
[1723643762904,80.36,147.51,147.37,61.2077761]
[1723643763105,60.36,147.54,147.37,61.2077761]
[1723643763315,60.36,147.57,147.41,6.7837]
[1723643763529,16.4605,147.58,147.43,60.36]
[1723643763739,20.0,147.54,147.4,60.36]
[1723643764032,20.0,147.54,147.38,45.0]
[1723643764033,60.36,147.51,147.38,45.0]
[1723643764241,80.36,147.48,147.37,0.8477761]
[1723643764545,20.0,147.46,147.37,0.8477761]
[1723643764853,66.9102,147.49,147.37,0.8477761]
[1723643765310,21.32340461,147.48,147.37,0.8477761]
[1723643765510,6.7811,147.47,147.37,0.8477761]
[1723643765714,21.32340461,147.46,147.37,0.8477761]
[1723643765931,1.32340461,147.45,147.37,0.8477761]
[1723643766305,80.36,147.43,147.37,0.8477761]
[1723643766520,60.36,147.43,147.37,0.8477761]
[1723643767005,1.32340461,147.45,147.37,0.8477761]
[1723643767328,1.32340461,147.44,147.37,0.8477761]
[1723643767507,86.9102,147.49,147.37,0.8477761]
[1723643767707,20.0,147.47,147.37,0.8477761]
[1723643768303,86.9102,147.49,147.37,0.8477761]
[1723643768512,6.5502,147.49,147.37,0.8477761]
[1723643768713,20.0,147.53,147.38,6.7849]
[1723643768911,21.32340461,147.53,147.39,45.0]
[1723643769109,1.32340461,147.52,147.39,45.0]
[1723643769340,20.0,147.53,147.38,45.0]
[1723643769513,20.0,147.49,147.37,0.8477761]
[1723643769712,20.0,147.51,147.37,0.8477761]
[1723643769928,20.0,147.53,147.37,0.8477761]
[1723643770114,20.0,147.47,147.37,0.8477761]
[1723643770336,26.7819,147.45,147.37,0.8477761]
[1723643770540,1.32340461,147.44,147.37,0.8477761]
[1723643770735,60.36,147.46,147.37,0.8477761]
[1723643771038,80.36,147.44,147.37,0.8477761]
[1723643771213,20.0,147.42,147.37,0.8477761]
[1723643771413,20.0,147.4,147.37,0.8477761]
[1723643771648,20.0,147.38,147.37,0.8477761]
[1723643771943,1.32340461,147.39,147.37,0.8477761]
[1723643772239,20.0,147.38,147.37,0.8477761]
[1723643772453,60.36,147.41,147.37,0.8477761]
[1723643772631,20.0,147.4,147.37,0.8477761]
[1723643772939,60.36,147.42,147.37,0.8477761]
[1723643773148,20.0,147.46,147.37,0.8477761]
[1723643773651,8.86421632,147.5,147.37,0.8477761]
[1723643773850,6.2215,147.5,147.37,0.8477761]
[1723643774145,80.36,147.53,147.37,0.8477761]
[1723643774323,80.36,147.53,147.37,45.8477761]
[1723643774519,42.6795,147.55,147.39,60.36]
[1723643774750,6.2215,147.55,147.42,60.36]
[1723643775054,15.452,147.61,147.45,60.36]
[1723643775055,2.69652218,147.58,147.45,60.36]
[1723643775217,20.0,147.6,147.45,60.36]
[1723643775419,20.0,147.6,147.46,45.45625955]
[1723643775650,20.0,147.6,147.46,45.0]
[1723643775946,20.0,147.55,147.39,60.36]
[1723643776241,1.32340461,147.54,147.4,45.0]
[1723643776446,80.36,147.57,147.42,60.36]
[1723643776622,20.0,147.57,147.43,45.0]
[1723643776946,80.36,147.54,147.39,60.36]
[1723643777149,20.0,147.52,147.38,60.36]
[1723643777452,60.36,147.54,147.38,60.36]
[1723643777617,80.36,147.58,147.41,60.36]
[1723643777813,80.36,147.58,147.44,60.36]
[1723643778018,20.0,147.56,147.44,60.36]
[1723643778326,80.36,147.52,147.37,61.2077761]
[1723643778640,80.36,147.46,147.37,0.8477761]
[1723643778948,20.0,147.43,147.37,0.8477761]
[1723643779125,60.36,147.46,147.37,0.8477761]
[1723643779321,20.0,147.47,147.37,0.8477761]
[1723643779523,20.0,147.41,147.37,0.8477761]
[1723643779727,20.0,147.39,147.37,0.8477761]
[1723643780056,1.32340461,147.38,147.37,0.8477761]
[1723643780415,80.36,147.39,147.37,0.8477761]
[1723643780416,20.0,147.41,147.37,0.8477761]
[1723643780658,20.0,147.47,147.37,0.8477761]
[1723643781334,96.7267,147.49,147.37,0.8477761]
[1723643781847,6.1572,147.51,147.37,0.8477761]
[1723643781848,26.1572,147.51,147.37,61.2077761]
[1723643782024,20.0,147.48,147.37,0.8477761]
[1723643782225,61.68340461,147.47,147.37,0.8477761]
[1723643782541,20.0,147.43,147.37,0.8477761]
[1723643782847,60.36,147.44,147.37,0.8477761]
[1723643783022,20.0,147.43,147.37,0.8477761]
[1723643783425,1.32340461,147.42,147.37,0.8477761]
[1723643783624,87.1425,147.44,147.37,0.8477761]
[1723643783625,60.36,147.44,147.37,0.8477761]
[1723643784035,20.0,147.43,147.37,0.8477761]
[1723643784349,20.0,147.41,147.37,0.8477761]
[1723643784533,60.36,147.44,147.37,0.8477761]
[1723643784727,20.0,147.41,147.37,0.8477761]
[1723643784950,1.32340461,147.4,147.37,0.8477761]
[1723643785260,20.0,147.46,147.37,0.8477761]
[1723643785434,80.36,147.44,147.37,0.8477761]
[1723643785641,1.32340461,147.43,147.37,0.8477761]
[1723643785846,21.32340461,147.42,147.37,0.8477761]
[1723643786352,20.0,147.4,147.37,0.8477761]
[1723643786535,80.36,147.38,147.37,0.8477761]
[1723643786737,20.0,147.4,147.37,0.8477761]
[1723643786940,20.0,147.43,147.37,0.8477761]
[1723643787160,20.0,147.41,147.37,0.8477761]
[1723643787464,60.36,147.42,147.37,0.8477761]
[1723643787625,21.32340461,147.41,147.37,0.8477761]
[1723643787828,20.0,147.39,147.37,0.8477761]
[1723643788062,21.32340461,147.38,147.37,0.8477761]
[1723643788261,8.10850461,147.38,147.37,0.8477761]
[1723643788536,80.36,147.39,147.23,6.5922]
[1723643788537,86.8638,147.39,147.23,13.6136542]
[1723643788722,26.5038,147.39,147.24,6.7914]
[1723643788936,20.0,147.41,147.25,6.7911]
[1723643789246,20.0,147.39,147.23,13.6129917]
[1723643789443,20.0,147.41,147.24,6.7913]
[1723643789623,20.0,147.41,147.23,6.5922]
[1723643789624,20.0,147.41,147.26,60.36]
[1723643789955,20.0,147.41,147.27,45.0]
[1723643790143,20.0,147.43,147.29,60.36]
[1723643790456,20.0,147.41,147.29,60.36]
[1723643791155,1.32340461,147.4,147.26,60.36]
[1723643791368,60.36,147.42,147.26,60.36]
[1723643791538,6.5038,147.45,147.32,60.36]
[1723643791733,34.60910461,147.45,147.29,60.36]
[1723643791959,6.5038,147.45,147.3,6.7886]
[1723643792148,60.36,147.46,147.32,60.36]
[1723643792356,26.7802,147.49,147.33,45.0]
[1723643792357,100.36,147.49,147.33,45.0]
[1723643792548,100.36,147.49,147.35,60.36]
[1723643792549,20.0,147.49,147.35,60.36]
[1723643792860,20.0,147.47,147.33,45.0]
[1723643793067,60.36,147.49,147.33,51.7873]
[1723643793239,6.5038,147.51,147.38,60.36]
[1723643793444,60.36,147.55,147.39,45.0]
[1723643793774,80.36,147.55,147.39,105.36]
[1723643793953,80.36,147.55,147.39,112.1443]
[1723643794261,80.36,147.55,147.39,105.36]
[1723643794262,60.36,147.55,147.39,105.36]
[1723643794471,27.17922,147.62,147.45,60.36]
[1723643794472,20.0,147.59,147.45,60.36]
[1723643794642,20.0,147.59,147.39,45.0]
[1723643794643,61.68340461,147.58,147.42,60.36]
[1723643794845,21.32340461,147.57,147.43,45.0]
[1723643795464,20.0,147.55,147.43,45.0]
[1723643795647,80.36,147.58,147.43,45.0]
[1723643795836,27.01205286,147.61,147.45,60.36]
[1723643795837,60.36,147.61,147.45,60.36]
[1723643796040,20.0,147.6,147.46,45.0]
[1723643796238,60.36,147.61,147.46,45.0]
[1723643796432,20.0,147.59,147.46,45.0]
[1723643796656,80.36,147.61,147.46,45.0]
[1723643796851,60.36,147.61,147.46,45.0]
[1723643797056,80.36,147.61,147.46,45.0]
[1723643797267,26.604,147.63,147.48,60.36]
[1723643797447,1.32340461,147.62,147.49,45.0]
[1723643797766,26.604,147.63,147.49,45.0]
[1723643798541,80.36,147.61,147.49,45.0]
[1723643798943,20.0,147.59,147.47,6.2825]
[1723643799147,1.32340461,147.58,147.47,6.2825]
[1723643799366,80.36,147.61,147.47,6.2825]
[1723643799662,20.0,147.59,147.47,6.2825]
[1723643800255,60.36,147.6,147.47,6.2825]
[1723643800566,1.32340461,147.59,147.47,6.2825]
[1723643800765,20.0,147.58,147.47,6.2825]
[1723643801068,20.0,147.6,147.47,6.2825]
[1723643801370,1.32340461,147.59,147.47,66.6425]
[1723643801544,1.32340461,147.58,147.47,6.2825]
[1723643801743,1.32340461,147.57,147.47,6.2825]
[1723643802055,60.36,147.56,147.42,6.5954]
[1723643803143,21.32340461,147.58,147.42,6.5954]
[1723643803345,20.0,147.6,147.44,60.36]
[1723643803549,20.0,147.6,147.45,45.0]
[1723643804363,80.36,147.6,147.45,45.0]
[1723643804749,60.36,147.6,147.45,45.0]
[1723643805158,80.36,147.6,147.45,45.0]
[1723643805451,60.36,147.54,147.42,6.5954]
[1723643806957,81.68340461,147.54,147.42,6.5954]
[1723643807668,60.36,147.51,147.39,15.6366]
[1723643807869,1.32340461,147.5,147.39,15.6366]
[1723643808175,60.36,147.51,147.39,15.6366]
[1723643808544,1.32340461,147.5,147.39,15.6366]
[1723643808959,60.36,147.51,147.39,15.6366]
[1723643809140,80.36,147.54,147.39,15.6366]
[1723643809995,60.36,147.54,147.4,45.0]
[1723643810162,81.68340461,147.54,147.4,45.0]
[1723643810364,88.46120461,147.54,147.4,45.0]
[1723643810574,60.36,147.48,147.37,6.4324]
[1723643811067,1.32340461,147.47,147.37,6.4324]
[1723643811297,60.36,147.48,147.37,6.4324]
[1723643811481,61.68340461,147.51,147.37,6.4324]
[1723643811786,80.36,147.48,147.37,6.4324]
[1723643812089,80.36,147.48,147.33,16.4957]
[1723643812295,1.32340461,147.47,147.33,16.4957]
[1723643812468,80.36,147.48,147.33,16.4957]
[1723643812890,20.0,147.46,147.33,16.4957]
[1723643813093,1.32340461,147.45,147.33,16.4957]
[1723643813295,60.36,147.45,147.33,16.4957]
[1723643813498,22.68972051,147.48,147.33,16.4957]
[1723643813722,60.36,147.49,147.34,60.36]
[1723643814261,63.03007377,147.49,147.33,23.283]
[1723643814467,6.7815,147.46,147.33,16.4957]
[1723643814684,20.0,147.45,147.33,16.4957]
[1723643814875,21.32340461,147.45,147.33,16.4957]
[1723643815362,20.0,147.43,147.33,16.4957]
[1723643815679,1.32340461,147.42,147.31,6.4518]
[1723643815866,6.7839,147.41,147.31,6.4518]
[1723643816066,60.36,147.43,147.31,6.4518]
[1723643816284,80.36,147.43,147.31,6.4518]
[1723643816590,80.36,147.43,147.28,60.36]
[1723643816591,77.9538,147.41,147.27,15.8733]
[1723643816790,1.32340461,147.4,147.27,15.8733]
[1723643816966,48.10820461,147.39,147.27,15.8733]
[1723643817292,20.0,147.37,147.26,6.157]
[1723643817512,52.49340461,147.38,147.26,6.157]
[1723643817817,51.17,147.38,147.26,6.157]
[1723643818120,20.0,147.39,147.26,6.157]
[1723643818420,20.0,147.41,147.26,6.157]
[1723643818716,20.0,147.39,147.27,51.17]
[1723643819126,20.0,147.41,147.27,51.17]
[1723643819302,20.0,147.4,147.26,6.157]
[1723643819504,20.0,147.36,147.26,6.157]
[1723643819797,20.0,147.44,147.33,51.17]
[1723643819987,1.32340461,147.43,147.33,51.17]
[1723643820187,78.19393557,147.47,147.33,51.17]
[1723643820408,20.0,147.43,147.33,51.17]
[1723643820589,20.0,147.45,147.3,51.17]
[1723643820800,1.32340461,147.46,147.3,51.17]
[1723643820801,20.0,147.43,147.31,45.0]
[1723643821001,26.782,147.45,147.31,45.0]
[1723643821295,20.0,147.43,147.3,51.17]
[1723643821502,20.0,147.41,147.3,51.17]
[1723643821898,20.0,147.43,147.3,51.17]
[1723643822817,20.0,147.43,147.31,45.0]
[1723643823235,20.0,147.43,147.3,51.17]
[1723643823522,20.0,147.39,147.27,51.17]
[1723643823697,20.0,147.39,147.24,7.02126986]
[1723643823698,20.0,147.37,147.24,51.17]
[1723643823898,20.0,147.37,147.22,7.2152761]
[1723643824210,20.0,147.37,147.24,51.17]
[1723643824804,21.32340461,147.39,147.24,51.17]
[1723643825017,16.5304,147.42,147.27,51.17]
[1723643825197,16.5304,147.42,147.24,7.01134764]
[1723643825198,20.0,147.4,147.3,51.17]
[1723643825395,20.0,147.4,147.27,51.17]
[1723643825699,20.0,147.38,147.24,51.17]
[1723643825931,20.0,147.36,147.22,7.2152761]
[1723643826127,20.0,147.32,147.22,0.8477761]
[1723643826335,1.32340461,147.31,147.22,0.8477761]
[1723643827134,26.6518,147.34,147.22,0.8477761]
[1723643827423,7.01886223,147.47,147.28,51.17]
[1723643827606,7.01886223,147.47,147.31,51.17]
[1723643827607,20.0,147.44,147.31,51.17]
[1723643827807,6.7812,147.47,147.26,22.7304]
[1723643827808,20.0,147.42,147.26,22.7304]
[1723643828016,20.0,147.42,147.27,57.9602]
[1723643828217,72.49340461,147.44,147.27,57.9602]
[1723643828407,71.17,147.44,147.28,20.0]
[1723643828612,71.17,147.44,147.29,45.0]
[1723643828812,71.17,147.44,147.27,51.17]
[1723643828813,20.0,147.41,147.27,51.17]
[1723643829201,71.17,147.41,147.26,22.7304]
[1723643829400,20.0,147.36,147.22,0.8477761]
[1723643829628,21.32340461,147.36,147.22,0.8477761]
[1723643829926,6.6332,147.43,147.3,51.17]
[1723643830145,16.5844,147.45,147.3,51.17]
[1723643830301,20.0,147.45,147.33,51.17]
[1723643830508,20.0,147.47,147.33,51.17]
[1723643831036,20.0,147.41,147.29,22.8322]
[1723643831325,20.0,147.41,147.24,6.5667]
[1723643831326,20.0,147.37,147.24,6.5667]
[1723643831626,51.17,147.38,147.24,6.5667]
[1723643831627,20.0,147.35,147.24,6.5667]
[1723643831930,26.3461,147.37,147.23,16.6005]
[1723643833414,15.5929,147.48,147.33,51.17]
[1723643833616,20.0,147.46,147.31,6.447]
[1723643833843,71.17,147.4,147.25,6.447]
[1723643834017,51.17,147.37,147.23,16.6005]
[1723643834329,20.0,147.38,147.23,16.6005]
[1723643834543,71.17,147.33,147.2,6.3282]
[1723643834853,20.0,147.35,147.2,57.4982]
[1723643835141,66.959,147.36,147.2,57.4982]
[1723643835333,1.32340461,147.35,147.2,6.3282]
[1723643835641,20.0,147.34,147.2,6.3282]
[1723643835836,20.0,147.34,147.2,57.4982]
[1723643836635,15.789,147.36,147.2,57.4982]
[1723643836835,15.789,147.36,147.2,64.2915]
[1723643837006,15.789,147.36,147.21,20.0]
[1723643837337,20.0,147.34,147.2,6.3282]
[1723643837537,20.0,147.3,147.17,7.01610115]
[1723643837725,1.32340461,147.29,147.16,51.17]
[1723643837933,20.0,147.28,147.16,51.17]
[1723643838224,20.0,147.32,147.16,51.17]
[1723643838423,20.0,147.32,147.11,6.4274]
[1723643838424,20.0,147.27,147.11,6.4274]
[1723643838730,20.0,147.25,147.11,6.4274]
[1723643838938,51.17,147.26,147.11,6.4274]
[1723643839106,71.17,147.28,147.12,51.17]
[1723643839315,20.0,147.26,147.12,51.17]
[1723643840333,20.0,147.26,147.11,6.4274]
[1723643840334,40.0,147.24,147.11,6.4274]
[1723643840536,1.32340461,147.23,147.11,6.4274]
[1723643840754,1.32340461,147.23,147.08,16.152]
[1723643841029,20.0,147.18,147.07,0.8477761]
[1723643841240,20.0,147.2,147.07,0.8477761]
[1723643841527,20.0,147.22,147.09,51.29]
[1723643841731,20.0,147.2,147.07,0.8477761]
[1723643841928,20.0,147.18,147.07,0.8477761]
[1723643842340,20.0,147.14,147.07,0.8477761]
[1723643842631,20.0,147.16,147.07,0.8477761]
[1723643842833,20.0,147.14,147.07,0.8477761]
[1723643843035,21.32340461,147.14,147.07,0.8477761]
[1723643843212,20.0,147.14,147.07,0.8477761]
[1723643843553,20.0,147.16,147.07,0.8477761]
[1723643843732,21.32340461,147.16,147.07,0.8477761]
[1723643843918,6.3792,147.17,147.07,0.8477761]
[1723643844132,26.3792,147.17,147.07,0.8477761]
[1723643844423,20.0,147.14,147.07,0.8477761]
[1723643844808,6.3792,147.17,147.07,0.8477761]
[1723643845028,20.0,147.15,147.07,0.8477761]
[1723643845735,20.0,147.12,147.07,0.8477761]
[1723643846441,1.32340461,147.11,147.07,0.8477761]
[1723643846614,21.32340461,147.1,147.07,0.8477761]
[1723643846840,20.0,147.12,147.07,0.8477761]
[1723643847037,20.0,147.1,147.07,0.8477761]
[1723643847341,20.0,147.08,147.07,0.8477761]
[1723643849949,21.32340461,147.08,147.07,0.8477761]
[1723643850477,20.0,147.1,147.07,0.8477761]
[1723643850648,51.29,147.14,147.07,0.8477761]
[1723643850649,20.0,147.12,147.07,0.8477761]
[1723643851028,20.0,147.1,147.07,0.8477761]
[1723643851277,20.0,147.08,147.07,0.8477761]
[1723643852227,8.11960461,147.14,147.07,0.8477761]
[1723643852228,20.0,147.14,147.07,0.8477761]
[1723643852423,1.32340461,147.15,147.07,0.8477761]
[1723643852735,20.0,147.16,147.07,0.8477761]
[1723643852934,20.0,147.18,147.07,0.8477761]
[1723643853122,20.0,147.18,147.07,20.8477761]
[1723643853540,72.61340461,147.21,147.07,20.8477761]
[1723643853541,20.0,147.2,147.07,20.8477761]
[1723643853743,20.0,147.16,147.07,20.8477761]
[1723643853948,20.0,147.18,147.07,20.8477761]
[1723643854175,21.32340461,147.17,147.07,20.8477761]
[1723643854322,21.32340461,147.17,147.07,0.8477761]
[1723643854527,20.0,147.19,147.07,45.8477761]
[1723643854728,22.64452374,147.21,147.08,71.29]
[1723643855027,22.64452374,147.21,147.09,45.0]
[1723643855248,20.0,147.21,147.1,20.0]
[1723643855459,20.0,147.14,147.07,0.8477761]
[1723643855754,21.32340461,147.18,147.07,20.8477761]
[1723643855934,20.0,147.18,147.07,20.8477761]
[1723643856663,20.0,147.2,147.07,20.8477761]
[1723643856859,20.0,147.17,147.07,0.8477761]
[1723643857028,20.0,147.14,147.07,20.8477761]
[1723643857254,20.0,147.12,147.07,0.8477761]
[1723643858055,20.0,147.14,147.07,0.8477761]
[1723643858256,20.0,147.12,147.07,0.8477761]
[1723643858627,20.0,147.08,147.07,0.8477761]
[1723643859033,20.0,147.1,147.07,0.8477761]
[1723643859532,20.0,147.11,147.07,0.8477761]
[1723643859729,20.0,147.15,147.07,0.8477761]
[1723643859950,20.0,147.12,147.07,0.8477761]